[Event "Anderssen Festival 2019"]
[Site "Wroclaw"]
[Date "2019.08.11"]
[Round "9.18"]
[White "Socha, Kamil"]
[Black "Czyz, Andrzej"]
[Result "0-1"]
[ECO "A05"]
[WhiteElo "1741"]
[BlackElo "2000"]
[Annotator "NA"]
[PlyCount "90"]
[EventDate "2019.08.05"]
[EventType "swiss"]
[EventCountry "POL"]
[SourceTitle "playchess.com"]
[Source "ChessBase"]
[SourceQuality "1"]
[TimeControl "40/5400+30:900+30"]

1. Nf3 {[%emt 0:00:00]} Nf6 {[%emt 0:00:00]} 2. g3 {[%emt 0:00:00]} d5 {[%emt 0:03:43]} 3. d4 {[%emt 0:00:00]} Bf5 {[%emt 0:05:02]} 4. Bg2 {[%emt 0:00:04]} e6 {[%emt 0:01:12]} 5. O-O {[%emt 0:00:16]} h6 {[%emt 0:00:30]} 6. c4 {[%emt 0:00:10]} c6 {[%emt 0:00:17]} 7. Qb3 {[%emt 0:00:35]} Qb6 {[%emt 0:00:49]} 8. Nc3 {[%emt 0:00:39]} Nbd7 {[%emt 0:00:54]} 9. c5 {[%emt 0:00:41]} Qc7 {[%emt 0:01:43]} 10. Bf4 {[%emt 0:00:10]} Qc8 {[%emt 0:00:05]} 11. Nh4 {[%emt 0:01:22]} Bh7 {[%emt 0:00:09]} 12. Nf3 {[%emt 0:00:25]} Be7 {[%emt 0:00:48]} 13. Qd1 {[%emt 0:00:54]} O-O {[%emt 0:00:35]} 14. b4 {[%emt 0:00:38]} Ne4 {[%emt 0:02:03]} 15. Nxe4 {[%emt 0:00:48]} Bxe4 {[%emt 0:00:04]} 16. Nd2 {[%emt 0:01:44]} Bxg2 {[%emt 0:00:06]} 17. Kxg2 {[%emt 0:00:07]} Bf6 {[%emt 0:00:15]} 18. Nf3 {[%emt 0:00:27]} Re8 {[%emt 0:00:31]} 19. Be5 {[%emt 0:04:44]} Bd8 {[%emt 0:03:22]} 20. Qd3 {[%emt 0:01:00]} f6 {[%emt 0:00:23]} 21. Bd6 {[%emt 0:00:28]} Bc7 {[%emt 0:00:46]} 22. Bxc7 {[%emt 0:00:14]} Qxc7 {[%emt 0:00:05]} 23. e4 {[%emt 0:00:55]} dxe4 {[%emt 0:17:39]} 24. Qxe4 {[%emt 0:00:07]} f5 {[%emt 0:00:48]} 25. Qe2 {[%emt 0:01:29]} Nf6 {[%emt 0:00:25]} 26. Rfe1 {[%emt 0:01:49]} Rad8 {[%emt 0:06:03]} 27. a4 {[%emt 0:00:18]} Qd7 {[%emt 0:04:13]} 28. b5 {[%emt 0:00:19]} Qd5 {[%emt 0:01:11]} 29. bxc6 {[%emt 0:05:39]} bxc6 {[%emt 0:01:50]} 30. Rab1 {[%emt 0:01:17]} Re7 {[%emt 0:06:06]} 31. Kg1 {[%emt 0:00:20]} Ne4 {[%emt 0:00:39]} 32. Qa6 {[%emt 0:02:33]} Nc3 {[%emt 0:04:56]} 33. Ne5 {[%emt 0:01:07]} Nxb1 {[%emt 0:03:37]} 34. Nxc6 {[%emt 0:00:21]} Ree8 {[%emt 0:00:20]} 35. Rxb1 {[%emt 0:04:58]} Rd7 {[%emt 0:06:31]} 36. Rb7 {[%emt 0:02:37]} Rxb7 {[%emt 0:02:31]} 37. Qxb7 {[%emt 0:00:09]} Qe4 {[%emt 0:01:33]} 38. Qd7 {[%emt 0:06:28]} Rf8 {[%emt 0:01:52]} 39. Nd8 {[%emt 0:03:16]} Rf6 {[%emt 0:01:18]} 40. Qe8+ {[%emt 0:00:00]} Kh7 {[%emt 0:00:00]} 41. Nf7 {[%emt 0:07:28]} Qxd4 {[%emt 0:02:16]} 42. h4 {[%emt 0:07:33]} f4 {[%emt 0:10:24]} 43. h5 {[%emt 0:03:20]} Qd1+ {[%emt 0:00:32]} 44. Kg2 {[%emt 0:00:48]} Qxh5 {[%emt 0:00:17]} 45. Qh8+ {[%emt 0:03:23]} Kg6 {[%emt 0:00:18]} 0-1

[Event "Anderssen Festival 2019"]
[Site "Wroclaw"]
[Date "2019.08.11"]
[Round "9.19"]
[White "Rog, Mateusz"]
[Black "Jablonska, Sabina"]
[Result "1-0"]
[ECO "B00"]
[WhiteElo "1473"]
[BlackElo "1963"]
[Annotator "NA"]
[PlyCount "73"]
[EventDate "2019.08.05"]
[EventType "swiss"]
[EventCountry "POL"]
[SourceTitle "playchess.com"]
[Source "ChessBase"]
[SourceQuality "1"]
[TimeControl "40/5400+30:900+30"]

1. e4 {[%emt 0:00:00]} b6 {[%emt 0:00:00]} 2. d4 {[%emt 0:00:12]} Bb7 {[%emt 0:00:00]} 3. Bd3 {[%emt 0:01:27]} e6 {[%emt 0:00:00]} 4. Nf3 {[%emt 0:00:26]} Ne7 {[%emt 0:00:15]} 5. b3 {[%emt 0:03:19]} g6 {[%emt 0:00:39]} 6. Bb2 {[%emt 0:01:45]} Bg7 {[%emt 0:00:07]} 7. c4 {[%emt 0:00:34]} d6 {[%emt 0:00:58]} 8. Qc2 {[%emt 0:02:12]} Nd7 {[%emt 0:00:30]} 9. Nbd2 {[%emt 0:00:24]} e5 {[%emt 0:04:28]} 10. O-O {[%emt 0:02:42]} O-O {[%emt 0:04:36]} 11. Rfe1 {[%emt 0:02:09]} h6 {[%emt 0:01:41]} 12. b4 {[%emt 0:01:32]} a6 {[%emt 0:06:42]} 13. d5 {[%emt 0:01:52]} f5 {[%emt 0:04:54]} 14. exf5 {[%emt 0:04:26]} Nxf5 {[%emt 0:02:04]} 15. Ne4 {[%emt 0:02:33]} Kh7 {[%emt 0:06:12]} 16. Ng3 {[%emt 0:06:15]} Qf6 {[%emt 0:05:32]} 17. Nxf5 {[%emt 0:01:06]} gxf5 {[%emt 0:01:46]} 18. g4 {[%emt 0:02:50]} Rf7 {[%emt 0:03:11]} 19. Bxf5+ {[%emt 0:01:57]} Kh8 {[%emt 0:00:05]} 20. Rad1 {[%emt 0:13:17]} c6 {[%emt 0:06:17]} 21. Rd3 {[%emt 0:01:20]} cxd5 {[%emt 0:06:05]} 22. cxd5 {[%emt 0:00:44]} Rc8 {[%emt 0:00:06]} 23. Qd2 {[%emt 0:02:17]} b5 {[%emt 0:01:09]} 24. Be6 {[%emt 0:00:38]} Re7 {[%emt 0:01:48]} 25. g5 {[%emt 0:02:13]} Qg6 {[%emt 0:02:49]} 26. Nh4 {[%emt 0:01:01]} Qe8 {[%emt 0:03:59]} 27. Nf5 {[%emt 0:01:31]} Rxe6 {[%emt 0:01:19]} 28. dxe6 {[%emt 0:01:51]} Qxe6 {[%emt 0:00:24]} 29. Nxg7 {[%emt 0:00:15]} Kxg7 {[%emt 0:00:33]} 30. gxh6+ {[%emt 0:02:35]} Kh7 {[%emt 0:00:25]} 31. Rg3 {[%emt 0:00:50]} Rg8 {[%emt 0:00:12]} 32. Ree3 {[%emt 0:04:18]} Nf6 {[%emt 0:00:35]} 33. Rxg8 {[%emt 0:01:36]} Nxg8 {[%emt 0:00:09]} 34. Rg3 {[%emt 0:04:24]} Be4 {[%emt 0:10:10]} 35. Qg5 {[%emt 0:07:15]} Qg6 {[%emt 0:00:09]} 36. Qd8 {[%emt 0:01:09]} Qe6 {[%emt 0:04:12]} 37. Qf8 {[%emt 0:00:22]} 1-0

[Event "Anderssen Festival 2019"]
[Site "Wroclaw"]
[Date "2019.08.11"]
[Round "9.20"]
[White "Partoens, Remi"]
[Black "Owoc, Jakub"]
[Result "1-0"]
[ECO "B12"]
[WhiteElo "1957"]
[BlackElo "1614"]
[Annotator "NA"]
[PlyCount "91"]
[EventDate "2019.08.05"]
[EventType "swiss"]
[EventCountry "POL"]
[SourceTitle "playchess.com"]
[Source "ChessBase"]
[SourceQuality "1"]
[TimeControl "40/5400+30:900+30"]

1. e4 c6 2. d4 d5 3. e5 c5 4. c3 Bf5 5. Ne2 e6 6. Ng3 Bg6 7. h4 h6 8. h5 Bh7 9. Bd3 Bxd3 10. Qxd3 Nc6 11. Nd2 Qb6 12. Nf3 cxd4 13. cxd4 Bb4+ 14. Bd2 Bxd2+ 15. Qxd2 Qb4 16. Rc1 Kd7 17. Rc3 Nge7 18. O-O Rac8 19. Rfc1 Qa5 20. Ne2 b6 21. a3 Qb5 22. Nh4 Na5 23. b3 Rxc3 24. Rxc3 Rc8 25. a4 Qa6 26. Rf3 Ke8 27. Nc3 Nxb3 28. Qf4 Kd7 29. Nxd5 Nc1 30. Qxf7 Ne2+ 31. Kh2 exd5 32. Ng6 Re8 33. e6+ Kd6 34. Qxe8 Qb7 35. Qd7+ Qxd7 36. exd7 Nc6 37. Rf7 Nexd4 38. Rxg7 Ne2 39. Ne7 Nd8 40. Nf5+ Ke6 41. Nxh6 d4 42. Ng4 d3 43. h6 Nc3 44. Ne3 d2 45. h7 Nd5 46. Nd1 1-0